[Event "ONJK-FGH 2019"]
[Site "Borne"]
[Date "2019.08.05"]
[Round "2.3"]
[White "Barbier, Emma"]
[Black "Terlouw, Wouter"]
[Result "0-1"]
[ECO "B34"]
[WhiteElo "578"]
[BlackElo "1159"]
[Annotator "NA"]
[PlyCount "136"]
[EventDate "2019.08.05"]
[EventType "swiss"]
[EventCountry "NED"]
[SourceTitle "playchess.com"]
[Source "ChessBase"]
[SourceQuality "1"]
[TimeControl "1500+10"]

1. e4 {[%emt 0:00:00]} c5 {[%emt 0:00:00]} 2. Bc4 {[%emt 0:00:25]} Nc6 {[%emt 0:00:00]} 3. Nf3 {[%emt 0:00:31]} g6 {[%emt 0:00:00]} 4. d4 {[%emt 0:00:40]} cxd4 {[%emt 0:00:03]} 5. Nxd4 {[%emt 0:00:21]} Bg7 {[%emt 0:00:02]} 6. Nf3 {[%emt 0:00:14]} d6 {[%emt 0:00:04]} 7. Nc3 {[%emt 0:00:47]} Nf6 {[%emt 0:00:10]} 8. Bg5 {[%emt 0:00:16]} O-O {[%emt 0:00:11]} 9. O-O {[%emt 0:00:22]} Bg4 {[%emt 0:00:12]} 10. h3 {[%emt 0:00:27]} Bd7 {[%emt 0:00:10]} 11. Qe2 {[%emt 0:00:18]} Qb6 {[%emt 0:00:14]} 12. b3 {[%emt 0:00:17]} Nd4 {[%emt 0:00:21]} 13. Qd3 {[%emt 0:00:59]} Nxf3+ {[%emt 0:00:16]} 14. Qxf3 {[%emt 0:00:18]} Bc6 {[%emt 0:00:38]} 15. Bd5 {[%emt 0:00:38]} Bxd5 {[%emt 0:00:23]} 16. Nxd5 {[%emt 0:00:21]} Nxd5 {[%emt 0:00:03]} 17. exd5 {[%emt 0:01:03]} Bxa1 {[%emt 0:00:02]} 18. Rxa1 {[%emt 0:00:22]} f6 {[%emt 0:00:21]} 19. Bh6 {[%emt 0:00:28]} Rfe8 {[%emt 0:00:05]} 20. Re1 {[%emt 0:00:30]} Rac8 {[%emt 0:00:20]} 21. c4 {[%emt 0:00:38]} Qa5 {[%emt 0:00:20]} 22. Re2 {[%emt 0:02:13]} b5 {[%emt 0:01:02]} 23. Qe3 {[%emt 0:00:40]} e5 {[%emt 0:00:45]} 24. dxe6 {[%emt 0:00:57]} Re7 {[%emt 0:00:18]} 25. Qf3 {[%emt 0:00:36]} f5 {[%emt 0:01:26]} 26. Bg5 {[%emt 0:00:40]} Ree8 {[%emt 0:00:59]} 27. e7 {[%emt 0:00:24]} bxc4 {[%emt 0:00:36]} 28. Qe3 {[%emt 0:00:51]} cxb3 {[%emt 0:00:24]} 29. Qe6+ {[%emt 0:00:25]} Kg7 {[%emt 0:00:25]} 30. Qf6+ {[%emt 0:01:06]} Kg8 {[%emt 0:00:05]} 31. Bh6 {[%emt 0:00:37]} Qc3 {[%emt 0:00:04]} 32. Qxc3 {[%emt 0:01:14]} Rxc3 {[%emt 0:00:03]} 33. axb3 {[%emt 0:00:22]} Rxb3 {[%emt 0:00:02]} 34. Re6 {[%emt 0:00:18]} Rb6 {[%emt 0:00:15]} 35. Rf6 {[%emt 0:00:49]} Rbb8 {[%emt 0:00:01]} 36. Rxd6 {[%emt 0:00:56]} Rxe7 {[%emt 0:00:05]} 37. g3 {[%emt 0:00:38]} Ra8 {[%emt 0:00:07]} 38. Bg5 {[%emt 0:00:23]} Re1+ {[%emt 0:00:19]} 39. Kg2 {[%emt 0:00:13]} a5 {[%emt 0:00:04]} 40. Rf6 {[%emt 0:00:38]} a4 {[%emt 0:00:24]} 41. Bd2 {[%emt 0:00:24]} Rd1 {[%emt 0:00:14]} 42. Bc3 {[%emt 0:00:13]} a3 {[%emt 0:00:04]} 43. g4 {[%emt 0:00:54]} a2 {[%emt 0:00:10]} 44. gxf5 {[%emt 0:00:18]} gxf5 {[%emt 0:00:02]} 45. Rxf5 {[%emt 0:00:09]} Rc1 {[%emt 0:00:10]} 46. Rg5+ {[%emt 0:00:21]} Kf8 {[%emt 0:00:13]} 47. Bg7+ {[%emt 0:00:18]} Kf7 {[%emt 0:00:07]} 48. Be5 {[%emt 0:00:12]} Rg8 {[%emt 0:00:09]} 49. Rxg8 {[%emt 0:00:08]} Kxg8 {[%emt 0:00:01]} 50. f4 {[%emt 0:00:13]} a1=Q 51. Bxa1 Rxa1 {[%emt 0:00:24]} 52. Kg3 {[%emt 0:00:14]} Kf7 {[%emt 0:00:02]} 53. Kg4 {[%emt 0:00:06]} Ra4 {[%emt 0:00:04]} 54. Kf5 {[%emt 0:00:02]} Ra5+ {[%emt 0:00:02]} 55. Kg4 {[%emt 0:00:06]} Kg6 {[%emt 0:00:02]} 56. Kf3 {[%emt 0:00:01]} Kf5 {[%emt 0:00:01]} 57. Kg3 {[%emt 0:00:05]} Ra4 {[%emt 0:00:01]} 58. Kf3 {[%emt 0:00:02]} Rxf4+ {[%emt 0:00:02]} 59. Ke3 {[%emt 0:00:03]} Rh4 {[%emt 0:00:02]} 60. Kf2 {[%emt 0:00:00]} Rxh3 {[%emt 0:00:01]} 61. Ke2 {[%emt 0:00:00]} Rg3 {[%emt 0:00:02]} 62. Kd2 {[%emt 0:00:03]} h5 {[%emt 0:00:02]} 63. Kc2 {[%emt 0:00:02]} h4 {[%emt 0:00:01]} 64. Kd2 {[%emt 0:00:01]} h3 {[%emt 0:00:01]} 65. Ke2 {[%emt 0:00:01]} h2 {[%emt 0:00:02]} 66. Kd2 {[%emt 0:00:00]} h1=Q {[%emt 0:00:03]} 67. Kc2 {[%emt 0:00:02]} Qh2+ {[%emt 0:00:02]} 68. Kd1 {[%emt 0:00:01]} Rg2 {[%emt 0:00:19]} 0-1

[Event "ONJK-FGH 2019"]
[Site "Borne"]
[Date "2019.08.05"]
[Round "2.4"]
[White "Gang, Kevin"]
[Black "De Vries, Jaap"]
[Result "1-0"]
[ECO "D07"]
[WhiteElo "827"]
[BlackElo "522"]
[Annotator "NA"]
[PlyCount "91"]
[EventDate "2019.08.05"]
[EventType "swiss"]
[EventCountry "NED"]
[SourceTitle "playchess.com"]
[Source "ChessBase"]
[SourceQuality "1"]
[TimeControl "1500+10"]

1. d4 {[%emt 0:00:00]} d5 {[%emt 0:00:00]} 2. c4 {[%emt 0:00:00]} Nc6 {[%emt 0:00:00]} 3. Nf3 {[%emt 0:00:16]} Nf6 {[%emt 0:00:00]} 4. Nc3 {[%emt 0:00:13]} dxc4 {[%emt 0:00:01]} 5. e4 {[%emt 0:00:15]} e5 {[%emt 0:00:04]} 6. Nxe5 {[%emt 0:00:11]} Nxe5 {[%emt 0:00:05]} 7. dxe5 {[%emt 0:00:10]} Qxd1+ {[%emt 0:00:05]} 8. Nxd1 {[%emt 0:00:41]} Nxe4 {[%emt 0:00:07]} 9. Bxc4 {[%emt 0:00:18]} Be6 {[%emt 0:01:39]} 10. b3 {[%emt 0:00:00]} Bxc4 {[%emt 0:00:08]} 11. bxc4 {[%emt 0:00:22]} Bb4+ {[%emt 0:01:29]} 12. Ke2 {[%emt 0:00:00]} Nc3+ {[%emt 0:00:09]} 13. Nxc3 {[%emt 0:00:37]} Bxc3 {[%emt 0:00:07]} 14. Rb1 {[%emt 0:00:33]} O-O-O {[%emt 0:00:14]} 15. f4 {[%emt 0:00:33]} Rhe8 {[%emt 0:00:15]} 16. Be3 {[%emt 0:00:25]} f6 {[%emt 0:00:21]} 17. Rhc1 {[%emt 0:00:59]} Bd4 {[%emt 0:01:37]} 18. Bxd4 {[%emt 0:00:44]} Rxd4 {[%emt 0:00:07]} 19. Ke3 {[%emt 0:00:20]} Red8 {[%emt 0:00:35]} 20. e6 {[%emt 0:01:36]} R4d6 {[%emt 0:00:07]} 21. f5 {[%emt 0:00:34]} g6 {[%emt 0:00:09]} 22. g4 {[%emt 0:00:20]} h6 {[%emt 0:00:07]} 23. fxg6 {[%emt 0:00:03]} Rg8 {[%emt 0:00:06]} 24. e7 {[%emt 0:00:07]} Re6+ {[%emt 0:00:34]} 25. Kf4 {[%emt 0:00:12]} Rxe7 {[%emt 0:00:04]} 26. Kf5 {[%emt 0:00:02]} Rf8 {[%emt 0:00:15]} 27. Re1 {[%emt 0:00:41]} Rd7 {[%emt 0:00:17]} 28. Rbd1 {[%emt 0:00:11]} Rxd1 {[%emt 0:00:13]} 29. Rxd1 {[%emt 0:00:03]} a5 {[%emt 0:00:35]} 30. g7 {[%emt 0:00:08]} Rg8 {[%emt 0:00:06]} 31. Kxf6 a4 {[%emt 0:00:07]} 32. Kf7 {[%emt 0:00:06]} Rd8 {[%emt 0:00:46]} 33. Rxd8+ {[%emt 0:00:18]} Kxd8 {[%emt 0:00:03]} 34. g8=Q+ {[%emt 0:00:05]} Kd7 {[%emt 0:00:01]} 35. Qe8+ {[%emt 0:00:01]} Kd6 {[%emt 0:00:00]} 36. Qe7+ {[%emt 0:00:00]} Kc6 {[%emt 0:00:00]} 37. c5 {[%emt 0:00:00]} Kb5 {[%emt 0:00:01]} 38. Qe5 {[%emt 0:00:00]} c6 {[%emt 0:00:03]} 39. a3 {[%emt 0:00:00]} b6 {[%emt 0:00:04]} 40. cxb6+ {[%emt 0:00:02]} Kxb6 {[%emt 0:00:14]} 41. Ke7 {[%emt 0:00:11]} c5 {[%emt 0:00:02]} 42. Kd7 {[%emt 0:00:02]} Kb5 43. Kd6 {[%emt 0:00:02]} h5 {[%emt 0:00:34]} 44. Qxc5+ {[%emt 0:00:18]} Ka6 {[%emt 0:00:05]} 45. Kc7 {[%emt 0:00:02]} hxg4 {[%emt 0:00:08]} 46. Qb6# {[%emt 0:00:18]} 1-0

[Event "ONJK-FGH 2019"]
[Site "Borne"]
[Date "2019.08.05"]
[Round "2.5"]
[White "Zoet, Wiebe"]
[Black "Thijssen, Freek"]
[Result "0-1"]
[ECO "C55"]
[WhiteElo "426"]
[BlackElo "702"]
[Annotator "NA"]
[PlyCount "30"]
[EventDate "2019.08.05"]
[EventType "swiss"]
[EventCountry "NED"]
[SourceTitle "playchess.com"]
[Source "ChessBase"]
[SourceQuality "1"]
[TimeControl "1500+10"]

1. e4 {[%emt 0:00:00]} e5 {[%emt 0:00:00]} 2. Nf3 {[%emt 0:00:06]} Nc6 {[%emt 0:00:02]} 3. Nc3 {[%emt 0:00:05]} Bc5 {[%emt 0:00:02]} 4. Bc4 {[%emt 0:00:25]} Nf6 {[%emt 0:00:16]} 5. Ng5 {[%emt 0:00:00]} O-O {[%emt 0:00:02]} 6. Bxf7+ {[%emt 0:00:04]} Rxf7 {[%emt 0:00:01]} 7. Nxf7 {[%emt 0:00:04]} Kxf7 {[%emt 0:00:02]} 8. O-O {[%emt 0:00:06]} d6 {[%emt 0:00:04]} 9. d3 {[%emt 0:00:49]} Ng4 {[%emt 0:00:30]} 10. Qf3+ {[%emt 0:00:13]} Kg8 {[%emt 0:00:06]} 11. Nd5 {[%emt 0:00:52]} Qh4 {[%emt 0:00:29]} 12. h3 {[%emt 0:00:07]} Nxf2 {[%emt 0:00:08]} 13. Nxc7 {[%emt 0:00:41]} Nxh3+ {[%emt 0:00:05]} 14. Kh1 {[%emt 0:00:26]} Nf2+ {[%emt 0:00:03]} 15. Kg1 {[%emt 0:00:00]} Qh1# {[%emt 0:00:10]} 0-1

[Event "ONJK-FGH 2019"]
[Site "Borne"]
[Date "2019.08.05"]
[Round "2.6"]
[White "Leenen, Boyd"]
[Black "Barbier, Sarah"]
[Result "1/2-1/2"]
[ECO "C23"]
[WhiteElo "618"]
[BlackElo "386"]
[Annotator "NA"]
[PlyCount "38"]
[EventDate "2019.08.05"]
[EventType "swiss"]
[EventCountry "NED"]
[SourceTitle "playchess.com"]
[Source "ChessBase"]
[SourceQuality "1"]
[TimeControl "1500+10"]

1. e4 {[%emt 0:00:00]} e5 {[%emt 0:00:00]} 2. Nf3 {[%emt 0:00:00]} Bc5 {[%emt 0:00:00]} 3. Bc4 {[%emt 0:00:00]} a5 {[%emt 0:00:01]} 4. Nxe5 {[%emt 0:00:00]} Qe7 {[%emt 0:00:26]} 5. d4 {[%emt 0:00:03]} Ba7 {[%emt 0:00:02]} 6. Nc3 {[%emt 0:00:05]} Nf6 {[%emt 0:00:04]} 7. Qd3 {[%emt 0:00:20]} Nc6 {[%emt 0:00:17]} 8. Nf3 {[%emt 0:00:00]} Ng4 {[%emt 0:00:28]} 9. h3 {[%emt 0:00:00]} Nh6 {[%emt 0:00:08]} 10. Bxh6 {[%emt 0:00:02]} gxh6 {[%emt 0:00:01]} 11. d5 {[%emt 0:00:03]} Qc5 {[%emt 0:00:15]} 12. dxc6 {[%emt 0:00:03]} Qxf2+ {[%emt 0:00:07]} 13. Kd1 {[%emt 0:00:02]} Be3 {[%emt 0:00:14]} 14. Qe2 {[%emt 0:00:07]} Qh4 {[%emt 0:00:18]} 15. Nxh4 {[%emt 0:00:03]} Bg5 {[%emt 0:00:07]} 16. cxb7 {[%emt 0:00:04]} Bxb7 {[%emt 0:00:04]} 17. Bd5 {[%emt 0:00:03]} Bxd5 {[%emt 0:00:08]} 18. Nxd5 {[%emt 0:00:03]} O-O-O {[%emt 0:00:14]} 19. Nf5 {[%emt 0:00:04]} Rhe8 {[%emt 0:00:10]} 1/2-1/2

[Event "ONJK-FGH 2019"]
[Site "Borne"]
[Date "2019.08.06"]
[Round "3.1"]
[White "Vijver, Jonathan"]
[Black "Jorritsma, Eli Alia"]
[Result "1-0"]
[ECO "B13"]
[WhiteElo "999"]
[BlackElo "574"]
[Annotator "NA"]
[PlyCount "45"]
[EventDate "2019.08.05"]
[EventType "swiss"]
[EventCountry "NED"]
[SourceTitle "playchess.com"]
[Source "ChessBase"]
[SourceQuality "1"]
[TimeControl "1500+10"]

1. e4 {[%emt 0:00:00]} c6 {[%emt 0:00:00]} 2. d4 {[%emt 0:00:00]} d5 {[%emt 0:00:00]} 3. exd5 {[%emt 0:00:02]} cxd5 {[%emt 0:00:06]} 4. Nc3 {[%emt 0:00:18]} Bf5 {[%emt 0:00:14]} 5. Bf4 {[%emt 0:01:14]} Nd7 {[%emt 0:00:37]} 6. Nxd5 {[%emt 0:00:43]} e6 {[%emt 0:00:34]} 7. Nc7+ {[%emt 0:01:03]} Ke7 {[%emt 0:00:20]} 8. Nxa8 {[%emt 0:00:34]} Qxa8 {[%emt 0:00:14]} 9. Nf3 {[%emt 0:01:13]} Ngf6 {[%emt 0:00:45]} 10. Bb5 {[%emt 0:00:51]} Ke8 {[%emt 0:00:54]} 11. Ne5 {[%emt 0:00:52]} Qd8 {[%emt 0:01:20]} 12. Bxd7+ {[%emt 0:00:43]} Nxd7 {[%emt 0:00:12]} 13. Nxd7 {[%emt 0:00:04]} Qxd7 {[%emt 0:00:10]} 14. O-O {[%emt 0:00:32]} Qe7 {[%emt 0:01:29]} 15. c3 {[%emt 0:01:47]} Qf6 {[%emt 0:00:42]} 16. Bg3 {[%emt 0:01:30]} Qg5 {[%emt 0:00:35]} 17. Qa4+ {[%emt 0:00:49]} Ke7 {[%emt 0:00:34]} 18. d5 {[%emt 0:00:49]} exd5 {[%emt 0:00:54]} 19. Bh4 {[%emt 0:00:16]} Bd7 {[%emt 0:00:24]} 20. Bxg5+ {[%emt 0:00:11]} Ke8 {[%emt 0:00:15]} 21. Rfe1+ {[%emt 0:00:07]} Be7 {[%emt 0:00:21]} 22. Rxe7+ {[%emt 0:00:08]} Kd8 {[%emt 0:00:26]} 23. Qxd7# {[%emt 0:00:05]} 1-0

[Event "ONJK-FGH 2019"]
[Site "Borne"]
[Date "2019.08.06"]
[Round "3.2"]
[White "Dijkhuijsen, Thomas"]
[Black "Kurt, Sascha"]
[Result "0-1"]
[ECO "C50"]
[WhiteElo "595"]
[BlackElo "984"]
[Annotator "NA"]
[PlyCount "34"]
[EventDate "2019.08.05"]
[EventType "swiss"]
[EventCountry "NED"]
[SourceTitle "playchess.com"]
[Source "ChessBase"]
[SourceQuality "1"]
[TimeControl "1500+10"]

1. e4 {[%emt 0:00:00]} e5 {[%emt 0:00:07]} 2. Nf3 {[%emt 0:00:00]} Nc6 {[%emt 0:00:00]} 3. Nc3 {[%emt 0:00:05]} Nf6 {[%emt 0:00:08]} 4. Bc4 {[%emt 0:00:09]} Bc5 {[%emt 0:00:22]} 5. O-O {[%emt 0:00:07]} d6 {[%emt 0:00:27]} 6. d3 {[%emt 0:00:30]} Be6 {[%emt 0:00:20]} 7. Bxe6 {[%emt 0:00:11]} fxe6 {[%emt 0:00:07]} 8. Bg5 {[%emt 0:00:08]} h6 {[%emt 0:00:11]} 9. Bxf6 {[%emt 0:00:06]} Qxf6 {[%emt 0:00:11]} 10. b3 {[%emt 0:00:52]} O-O-O {[%emt 0:00:56]} 11. Rc1 {[%emt 0:00:49]} h5 {[%emt 0:00:09]} 12. Nd2 {[%emt 0:00:19]} h4 {[%emt 0:00:30]} 13. g3 {[%emt 0:00:41]} hxg3 {[%emt 0:00:08]} 14. Nf3 {[%emt 0:01:04]} gxh2+ {[%emt 0:00:43]} 15. Nxh2 {[%emt 0:00:10]} Qh4 {[%emt 0:00:25]} 16. Re1 {[%emt 0:01:06]} Qxh2+ {[%emt 0:00:05]} 17. Kf1 {[%emt 0:00:10]} Qxf2# {[%emt 0:00:09]} 0-1

[Event "ONJK-FGH 2019"]
[Site "Borne"]
[Date "2019.08.06"]
[Round "3.3"]
[White "Terlouw, Wouter"]
[Black "Rooijakkers, Liam"]
[Result "1-0"]
[ECO "B07"]
[WhiteElo "1159"]
[BlackElo "680"]
[Annotator "NA"]
[PlyCount "115"]
[EventDate "2019.08.05"]
[EventType "swiss"]
[EventCountry "NED"]
[SourceTitle "playchess.com"]
[Source "ChessBase"]
[SourceQuality "1"]
[TimeControl "1500+10"]

1. d4 {[%emt 0:00:00]} d6 {[%emt 0:00:00]} 2. e4 {[%emt 0:00:00]} Nf6 {[%emt 0:00:00]} 3. Nc3 {[%emt 0:00:00]} Nbd7 {[%emt 0:00:00]} 4. Nf3 {[%emt 0:00:04]} c6 {[%emt 0:00:14]} 5. Bc4 {[%emt 0:00:22]} b5 {[%emt 0:00:04]} 6. Bb3 {[%emt 0:00:05]} b4 {[%emt 0:00:02]} 7. Ng5 {[%emt 0:00:14]} e6 {[%emt 0:00:34]} 8. Ne2 {[%emt 0:00:39]} h6 {[%emt 0:00:05]} 9. Nf3 {[%emt 0:00:43]} Nxe4 {[%emt 0:00:41]} 10. Ng3 {[%emt 0:00:37]} Nxg3 {[%emt 0:00:36]} 11. hxg3 {[%emt 0:00:01]} Be7 {[%emt 0:00:00]} 12. Bd2 {[%emt 0:00:11]} a5 {[%emt 0:00:03]} 13. O-O {[%emt 0:00:19]} g5 {[%emt 0:00:13]} 14. Ba4 {[%emt 0:00:12]} Bb7 {[%emt 0:00:14]} 15. c3 {[%emt 0:00:12]} g4 {[%emt 0:00:19]} 16. Nh2 {[%emt 0:00:20]} h5 {[%emt 0:00:17]} 17. f3 {[%emt 0:00:14]} Qc7 {[%emt 0:00:23]} 18. fxg4 {[%emt 0:00:15]} hxg4 {[%emt 0:00:11]} 19. Qxg4 {[%emt 0:00:33]} O-O-O {[%emt 0:00:25]} 20. Rxf7 {[%emt 0:00:36]} Nb6 {[%emt 0:00:16]} 21. Qxe6+ {[%emt 0:00:43]} Qd7 {[%emt 0:00:07]} 22. Rxe7 {[%emt 0:00:25]} Qxe6 {[%emt 0:00:09]} 23. Rxe6 {[%emt 0:00:04]} Nxa4 {[%emt 0:00:03]} 24. cxb4 {[%emt 0:00:09]} axb4 {[%emt 0:00:15]} 25. b3 {[%emt 0:00:17]} Nc3 {[%emt 0:00:46]} 26. Bxc3 {[%emt 0:00:14]} bxc3 {[%emt 0:00:06]} 27. Rc1 {[%emt 0:00:02]} Rh7 {[%emt 0:00:24]} 28. Rxc3 {[%emt 0:00:43]} Rf7 {[%emt 0:00:26]} 29. Rf3 {[%emt 0:00:13]} Rg7 {[%emt 0:00:13]} 30. Ref6 {[%emt 0:00:31]} c5 {[%emt 0:00:09]} 31. d5 {[%emt 0:00:51]} Bxd5 {[%emt 0:00:16]} 32. Rd3 {[%emt 0:00:12]} Bb7 {[%emt 0:00:21]} 33. Kf2 {[%emt 0:00:58]} Rdg8 {[%emt 0:00:13]} 34. Rfxd6 {[%emt 0:00:38]} Rc7 {[%emt 0:00:21]} 35. Re3 {[%emt 0:00:58]} Rf7+ {[%emt 0:00:10]} 36. Nf3 {[%emt 0:00:24]} Rgf8 {[%emt 0:00:06]} 37. Rde6 {[%emt 0:00:17]} Kd7 {[%emt 0:00:51]} 38. R6e5 {[%emt 0:01:05]} Kd8 {[%emt 0:00:16]} 39. Rxc5 {[%emt 0:00:17]} Rd7 {[%emt 0:00:19]} 40. Ke2 {[%emt 0:00:15]} Ba6+ {[%emt 0:00:09]} 41. Ke1 {[%emt 0:00:27]} Rg8 {[%emt 0:00:41]} 42. Ne5 {[%emt 0:00:38]} Re8 {[%emt 0:00:54]} 43. Nc6+ {[%emt 0:00:12]} Kc7 {[%emt 0:00:23]} 44. Rxe8 {[%emt 0:00:09]} Kb6 {[%emt 0:00:20]} 45. Rc3 {[%emt 0:00:19]} Rc7 {[%emt 0:00:07]} 46. Re6 {[%emt 0:00:32]} Bb5 {[%emt 0:00:04]} 47. Nd8+ {[%emt 0:00:19]} Ka5 {[%emt 0:01:02]} 48. Rxc7 {[%emt 0:00:22]} Bd3 {[%emt 0:00:18]} 49. a3 {[%emt 0:00:00]} Bb5 {[%emt 0:00:03]} 50. Nc6+ {[%emt 0:00:04]} Ka6 {[%emt 0:00:01]} 51. Nb4+ {[%emt 0:00:46]} Ka5 {[%emt 0:00:04]} 52. Ra7+ {[%emt 0:00:02]} Ba6 {[%emt 0:00:04]} 53. Rexa6+ {[%emt 0:00:09]} Kb5 {[%emt 0:00:01]} 54. Rb7+ {[%emt 0:00:02]} Kc5 {[%emt 0:00:04]} 55. Rc6+ {[%emt 0:00:03]} Kd4 {[%emt 0:00:00]} 56. Rd7+ {[%emt 0:00:01]} Ke5 {[%emt 0:00:07]} 57. Rd5+ {[%emt 0:00:03]} Ke4 {[%emt 0:00:02]} 58. Rc4+ {[%emt 0:00:02]} 1-0

[Event "ONJK-FGH 2019"]
[Site "Borne"]
[Date "2019.08.06"]
[Round "3.4"]
[White "Talen Alarcón, Milton"]
[Black "Gang, Kevin"]
[Result "0-1"]
[ECO "C55"]
[WhiteElo "619"]
[BlackElo "827"]
[Annotator "NA"]
[PlyCount "28"]
[EventDate "2019.08.05"]
[EventType "swiss"]
[EventCountry "NED"]
[SourceTitle "playchess.com"]
[Source "ChessBase"]
[SourceQuality "1"]
[TimeControl "1500+10"]

1. e4 {[%emt 0:00:00]} e5 {[%emt 0:00:00]} 2. Nf3 {[%emt 0:00:00]} Nc6 {[%emt 0:00:02]} 3. Nc3 {[%emt 0:00:00]} Nf6 {[%emt 0:00:14]} 4. Bc4 {[%emt 0:00:03]} Nxe4 {[%emt 0:00:08]} 5. Nxe4 {[%emt 0:00:05]} d5 {[%emt 0:00:12]} 6. Bb3 {[%emt 0:00:11]} dxe4 {[%emt 0:00:13]} 7. Ng1 {[%emt 0:00:40]} Bc5 {[%emt 0:00:28]} 8. f3 {[%emt 0:00:12]} O-O {[%emt 0:00:56]} 9. fxe4 {[%emt 0:01:09]} Qh4+ {[%emt 0:00:00]} 10. Ke2 {[%emt 0:00:10]} Qf2+ {[%emt 0:00:00]} 11. Kd3 {[%emt 0:00:11]} Nb4+ {[%emt 0:00:44]} 12. Kc4 {[%emt 0:00:07]} Qd4+ {[%emt 0:00:15]} 13. Kb5 {[%emt 0:00:54]} Bd7+ {[%emt 0:00:05]} 14. Ka5 {[%emt 0:00:10]} b6# {[%emt 0:00:27]} 0-1

[Event "ONJK-FGH 2019"]
[Site "Borne"]
[Date "2019.08.06"]
[Round "3.5"]
[White "Thijssen, Freek"]
[Black "Rudolph, Simon"]
[Result "1-0"]
[ECO "C11"]
[WhiteElo "702"]
[BlackElo "464"]
[Annotator "NA"]
[PlyCount "49"]
[EventDate "2019.08.05"]
[EventType "swiss"]
[EventCountry "NED"]
[SourceTitle "playchess.com"]
[Source "ChessBase"]
[SourceQuality "1"]
[TimeControl "1500+10"]

1. e4 {[%emt 0:00:00]} Nf6 {[%emt 0:00:00]} 2. Nc3 {[%emt 0:00:00]} d5 {[%emt 0:00:00]} 3. e5 {[%emt 0:00:00]} Nfd7 {[%emt 0:00:00]} 4. Nf3 {[%emt 0:00:00]} e6 {[%emt 0:00:00]} 5. d4 {[%emt 0:00:00]} c5 {[%emt 0:00:04]} 6. Bg5 {[%emt 0:00:13]} Be7 {[%emt 0:00:05]} 7. Bxe7 {[%emt 0:00:09]} Qxe7 {[%emt 0:00:04]} 8. Bb5 {[%emt 0:00:08]} O-O {[%emt 0:00:07]} 9. O-O {[%emt 0:00:04]} cxd4 {[%emt 0:00:03]} 10. Nxd4 {[%emt 0:00:04]} a6 {[%emt 0:00:22]} 11. Bd3 {[%emt 0:00:03]} g6 {[%emt 0:01:10]} 12. Re1 {[%emt 0:01:34]} Qg5 {[%emt 0:00:00]} 13. Nf3 {[%emt 0:00:07]} Qd8 {[%emt 0:00:00]} 14. Qd2 {[%emt 0:00:14]} h5 {[%emt 0:00:00]} 15. Qh6 {[%emt 0:00:12]} f5 {[%emt 0:00:00]} 16. Ng5 {[%emt 0:00:04]} Rf7 {[%emt 0:00:04]} 17. Qxg6+ {[%emt 0:00:08]} Rg7 {[%emt 0:00:05]} 18. Qxe6+ {[%emt 0:00:06]} Kf8 {[%emt 0:00:11]} 19. Qxf5+ {[%emt 0:00:18]} Kg8 {[%emt 0:00:07]} 20. e6 {[%emt 0:00:12]} Nc5 {[%emt 0:00:12]} 21. Re5 {[%emt 0:00:38]} Nxd3 {[%emt 0:00:07]} 22. cxd3 {[%emt 0:00:01]} Qe8 {[%emt 0:00:03]} 23. Qf7+ {[%emt 0:00:28]} Qxf7 {[%emt 0:00:03]} 24. exf7+ {[%emt 0:00:02]} Kf8 {[%emt 0:00:03]} 25. Re8# {[%emt 0:00:15]} 1-0

[Event "ONJK-FGH 2019"]
[Site "Borne"]
[Date "2019.08.06"]
[Round "3.6"]
[White "Zhang, Yourui Eric"]
[Black "Leenen, Boyd"]
[Result "0-1"]
[ECO "C41"]
[WhiteElo "447"]
[BlackElo "618"]
[Annotator "NA"]
[PlyCount "56"]
[EventDate "2019.08.05"]
[EventType "swiss"]
[EventCountry "NED"]
[SourceTitle "playchess.com"]
[Source "ChessBase"]
[SourceQuality "1"]
[TimeControl "1500+10"]

1. e4 {[%emt 0:00:00]} e5 {[%emt 0:00:00]} 2. Nf3 {[%emt 0:00:00]} d6 {[%emt 0:00:00]} 3. Bc4 {[%emt 0:00:05]} h6 {[%emt 0:00:00]} 4. O-O {[%emt 0:00:04]} Nf6 {[%emt 0:00:00]} 5. d3 {[%emt 0:00:02]} a6 {[%emt 0:00:00]} 6. Nc3 {[%emt 0:00:07]} Nc6 {[%emt 0:00:02]} 7. Be3 {[%emt 0:00:04]} Be6 {[%emt 0:00:01]} 8. Bxe6 {[%emt 0:00:08]} fxe6 {[%emt 0:00:02]} 9. b3 {[%emt 0:00:18]} Be7 {[%emt 0:00:06]} 10. Ne2 {[%emt 0:00:08]} Qd7 {[%emt 0:00:04]} 11. d4 {[%emt 0:00:03]} exd4 {[%emt 0:00:07]} 12. Nfxd4 {[%emt 0:00:19]} Nxe4 {[%emt 0:00:05]} 13. Nxc6 {[%emt 0:00:04]} Qxc6 {[%emt 0:00:03]} 14. Qd4 {[%emt 0:00:12]} e5 {[%emt 0:00:09]} 15. Qd2 {[%emt 0:00:07]} Nxd2 {[%emt 0:00:03]} 16. Bxd2 {[%emt 0:00:06]} Qxc2 {[%emt 0:00:04]} 17. Rfd1 {[%emt 0:00:17]} O-O {[%emt 0:00:08]} 18. Rac1 {[%emt 0:00:07]} Qxa2 {[%emt 0:00:02]} 19. Rxc7 {[%emt 0:00:06]} Qxb3 {[%emt 0:00:03]} 20. Rdc1 {[%emt 0:00:04]} Bd8 {[%emt 0:00:03]} 21. Rxb7 {[%emt 0:00:05]} Qxb7 {[%emt 0:00:03]} 22. Rc3 {[%emt 0:00:14]} Qa7 {[%emt 0:00:02]} 23. Rg3 {[%emt 0:00:11]} Qxf2+ {[%emt 0:00:06]} 24. Kh1 {[%emt 0:00:05]} Qf1+ {[%emt 0:00:07]} 25. Ng1 {[%emt 0:00:02]} Qxg1+ {[%emt 0:00:06]} 26. Kxg1 {[%emt 0:00:02]} Rb8 {[%emt 0:00:05]} 27. Bxh6 {[%emt 0:00:03]} Rb1+ {[%emt 0:00:29]} 28. Bc1 {[%emt 0:00:13]} Rxc1# {[%emt 0:00:00]} 0-1